fUSD/lending_fUSD_20250515
["ID","MTS","AMOUNT","RATE_DAILY","PERIOD"]
[361153325,1747310245564,150.0,0.000106,7]
[361153326,1747310246850,150.0,0.0001592,20]
[361153327,1747310501430,150.0,0.0001584,20]
[361153328,1747310637966,-1118.60148904,0.00015,10]
[361153329,1747310721113,-152.0,0.00018546,10]
[361153330,1747310721140,-152.0,0.0001884,11]
[361153331,1747310721167,-152.0,0.00019133,12]
[361153332,1747310721204,-152.0,0.00019427,13]
[361153333,1747310721234,-152.0,0.0001972,14]
[361153334,1747310721264,-24911.44698458,0.0002,20]
[361153335,1747310721291,-479.22958126,0.0002,10]
[361153336,1747310783950,400.0,0.00023287,30]
[361153337,1747310792477,152.0,0.00019896,14]
[361153338,1747310793440,152.0,0.00019588,13]
[361153339,1747310793796,152.0,0.0001928,12]
[361153340,1747310794127,152.0,0.00018972,11]
[361153341,1747310794335,-168.91,0.00010603,2]
[361153342,1747310794359,-163.54,0.00010635,2]
[361153343,1747310794383,-1000.0,0.00010641,2]
[361153344,1747310794407,-1857.0,0.00010827,2]
[361153345,1747310794429,-712.58,0.00011019,2]
[361153346,1747310794451,-200.0,0.00011036,2]
[361153347,1747310794474,-200.0,0.00011193,2]
[361153348,1747310794498,-4000.0,0.00011233,2]
[361153349,1747310794522,-207.4,0.0001149,2]
[361153350,1747310794546,-1200.0,0.00011496,2]
[361153351,1747310794570,-300.0,0.00011496,2]
[361153352,1747310794594,-300.0,0.00011496,2]
[361153353,1747310794615,-240.98,0.00011497,2]
[361153354,1747310794639,-270.645,0.00011497,2]
[361153355,1747310794661,-1930.9418,0.00011497,2]
[361153356,1747310794683,-3242.99665096,0.00011497,2]
[361153357,1747310794710,-465.72285786,0.00011497,2]
[361153358,1747310794731,-572.99350177,0.00011497,2]
[361153359,1747310794752,-1875.48,0.00011498,2]
[361153360,1747310794776,-999.99,0.00011498,2]
[361153361,1747310794798,-1369.52,0.00011498,2]
[361153362,1747310794819,-407.2286,0.00011498,2]
[361153363,1747310794840,-1311.996,0.00011499,2]
[361153364,1747310794863,-1417.603,0.00011499,2]
[361153365,1747310794884,-741.5163,0.00011552,2]
[361153366,1747310794905,-500.0,0.00011573,2]
[361153367,1747310794928,-500.0,0.00011573,2]
[361153368,1747310794949,-500.0,0.00011573,2]
[361153369,1747310794971,-500.73714188,0.00011573,2]
[361153370,1747310794992,-500.53610055,0.00011573,2]
[361153371,1747310795014,-312.58518374,0.00011573,2]
[361153372,1747310795038,-500.0,0.00011573,2]
[361153373,1747310795058,-500.79208653,0.00011573,2]
[361153374,1747310795079,-500.0,0.00011573,2]
[361153375,1747310795100,-500.0,0.00011573,2]
[361153376,1747310795120,-264.91265297,0.00011573,2]
[361153377,1747310795141,-695.0107281,0.00011586,2]
[361153378,1747310795164,-158.72,0.00011587,2]
[361153379,1747310795185,-158.72,0.00011587,2]
[361153380,1747310795206,-158.72,0.00011588,2]
[361153381,1747310795228,-244.37285167,0.0001159,2]
[361153382,1747310795250,-668.65185757,0.0001159,2]
[361153383,1747310795272,-190.265651,0.0001159,2]
[361153384,1747310795293,-150.0,0.00011595,2]
[361153385,1747310795316,-1000.0,0.00011596,2]
[361153386,1747310795337,-542.09146549,0.00011596,2]
[361153387,1747310795359,-501.14559536,0.00011596,2]
[361153388,1747310795380,-400.0,0.00011596,2]
[361153389,1747310795403,-400.0,0.00011596,2]
[361153390,1747310795425,-470.0,0.00011596,2]
[361153391,1747310795446,-400.0,0.00011596,2]
[361153392,1747310795468,-400.0,0.00011596,2]
[361153393,1747310795491,-470.0,0.00011596,2]
[361153394,1747310795512,-400.0,0.00011596,2]
[361153395,1747310795537,-400.0,0.00011596,2]
[361153396,1747310795558,-170.66173006,0.00011596,2]
[361153397,1747310795581,-400.0,0.00011596,2]
[361153398,1747310795604,-400.0,0.00011596,2]
[361153399,1747310795626,-400.0,0.00011596,2]
[361153400,1747310795648,-400.0,0.00011596,2]
[361153401,1747310795669,-400.0,0.00011596,2]
[361153402,1747310795693,-310.48361437,0.00011596,2]
[361153403,1747310795715,-400.0,0.00011596,2]
[361153404,1747310795738,-400.0,0.00011596,2]
[361153405,1747310795760,-400.0,0.00011596,2]
[361153406,1747310795787,-400.0,0.00011596,2]
[361153407,1747310795808,-400.0,0.00011596,2]
[361153408,1747310795831,-400.0,0.00011596,2]
[361153409,1747310795853,-400.0,0.00011596,2]
[361153410,1747310795876,-400.0,0.00011596,2]
[361153411,1747310795898,-2096.19,0.00011596,2]
[361153412,1747310795920,-400.0,0.00011596,2]
[361153413,1747310795941,-400.0,0.00011596,2]
[361153414,1747310795963,-400.2567098,0.00011596,2]
[361153415,1747310795984,-400.0,0.00011596,2]
[361153416,1747310796006,-400.0,0.00011596,2]
[361153417,1747310796031,-400.0,0.00011596,2]
[361153418,1747310796053,-400.0,0.00011596,2]
[361153419,1747310796075,-400.0,0.00011596,2]
[361153420,1747310796097,-400.0,0.00011596,2]
[361153421,1747310796118,-255.64304407,0.00011596,2]
[361153422,1747310796141,-400.0,0.00011596,2]
[361153423,1747310796163,-400.0,0.00011596,2]
[361153424,1747310796184,-416.21437013,0.00011596,2]
[361153425,1747310796205,-565.98118433,0.00011596,2]
[361153426,1747310796227,-400.0,0.00011596,2]
[361153427,1747310796249,-400.0,0.00011596,2]
[361153428,1747310796273,-445.61,0.00011596,2]
[361153429,1747310796295,-400.0,0.00011596,2]
[361153430,1747310796569,-400.0,0.00011596,2]
[361153431,1747310796593,-400.0,0.00011596,2]
[361153432,1747310796616,-281.0,0.00011596,2]
[361153433,1747310796640,-155.8591271,0.00011596,2]
[361153434,1747310796664,-400.0,0.00011596,2]
[361153435,1747310796688,-400.0,0.00011596,2]
[361153436,1747310796715,-400.0,0.00011596,2]
[361153437,1747310796737,-400.0,0.00011596,2]
[361153438,1747310796759,-400.0,0.00011596,2]
[361153439,1747310796785,-400.0,0.00011596,2]
[361153440,1747310796807,-466.28,0.00011596,2]
[361153441,1747310796830,-700.14,0.00011596,2]
[361153442,1747310796852,-400.0,0.00011596,2]
[361153443,1747310796874,-387.5,0.00011596,2]
[361153444,1747310796896,-400.0,0.00011596,2]
[361153445,1747310796918,-400.0,0.00011596,2]
[361153446,1747310796941,-400.0,0.00011596,2]
[361153447,1747310796964,-400.0,0.00011596,2]
[361153448,1747310796987,-400.0,0.00011596,2]
[361153449,1747310797010,-400.0,0.00011596,2]
[361153450,1747310797033,-400.0,0.00011596,2]
[361153451,1747310797055,-400.0,0.00011596,2]
[361153452,1747310797078,-460.79,0.00011596,2]
[361153453,1747310797101,-250.0,0.00011596,2]
[361153454,1747310797123,-400.0,0.00011596,2]
[361153455,1747310797145,-448.71,0.00011596,2]
[361153456,1747310797166,-400.0,0.00011596,2]
[361153457,1747310797189,-400.0,0.00011596,2]
[361153458,1747310797211,-405.51,0.00011596,2]
[361153459,1747310797234,-416.86,0.00011596,2]
[361153460,1747310797256,-318.80921984,0.00011596,2]
[361153461,1747310797280,-564.74,0.00011596,2]
[361153462,1747310797301,-400.0,0.00011596,2]
[361153463,1747310797324,-462.87,0.00011596,2]
[361153464,1747310797347,-400.0,0.00011596,2]
[361153465,1747310797369,-400.0,0.00011596,2]
[361153466,1747310797392,-400.0,0.00011596,2]
[361153467,1747310797414,-400.0,0.00011596,2]
[361153468,1747310797436,-409.68821544,0.00011596,2]
[361153469,1747310797458,-400.0,0.00011596,2]
[361153470,1747310797481,-400.0,0.00011596,2]
[361153471,1747310797504,-400.0,0.00011596,2]
[361153472,1747310797528,-400.0,0.00011596,2]
[361153473,1747310797551,-400.0,0.00011596,2]
[361153474,1747310797575,-400.0,0.00011596,2]
[361153475,1747310797601,-400.0,0.00011596,2]
[361153476,1747310797625,-1051.86,0.00011596,2]
[361153477,1747310797649,-400.0,0.00011596,2]
[361153478,1747310797671,-946.404263,0.00011596,2]
[361153479,1747310797697,-400.0,0.00011596,2]
[361153480,1747310797718,-154.27434851,0.00011596,2]
[361153481,1747310797740,-400.0,0.00011596,2]
[361153482,1747310797762,-719.81,0.00011596,2]
[361153483,1747310797788,-427.8,0.00011596,2]
[361153484,1747310797810,-400.0,0.00011596,2]
[361153485,1747310797832,-400.0,0.00011596,2]
[361153486,1747310797855,-405.71,0.00011596,2]
[361153487,1747310797877,-1282.78,0.00011596,2]
[361153488,1747310797900,-153.990612,0.00011596,2]
[361153489,1747310797922,-400.0,0.00011596,2]
[361153490,1747310797945,-400.0,0.00011596,2]
[361153491,1747310797967,-400.0,0.00011596,2]
[361153492,1747310797990,-601.466163,0.00011596,2]
[361153493,1747310798014,-4711.125419,0.00011596,2]
[361153494,1747310798039,-400.0,0.00011596,2]
[361153495,1747310798061,-441.76,0.00011596,2]
[361153496,1747310798084,-400.0,0.00011596,2]
[361153497,1747310798107,-400.0,0.00011596,2]
[361153498,1747310798129,-400.0,0.00011596,2]
[361153499,1747310798151,-400.0,0.00011596,2]
[361153500,1747310798173,-400.0,0.00011596,2]
[361153501,1747310798196,-400.0,0.00011596,2]
[361153502,1747310798219,-400.0,0.00011596,2]
[361153503,1747310798240,-400.0,0.00011596,2]
[361153504,1747310798265,-492.54,0.00011596,2]
[361153505,1747310798291,-458.36355577,0.00011596,2]
[361153506,1747310798312,-400.0,0.00011596,2]
[361153507,1747310798333,-400.0,0.00011596,2]
[361153508,1747310798355,-400.0,0.00011596,2]
[361153509,1747310798377,-446.28,0.00011596,2]
[361153510,1747310798398,-400.0,0.00011596,2]
[361153511,1747310798420,-400.0,0.00011596,2]
[361153512,1747310798444,-589.99,0.00011596,2]
[361153513,1747310798466,-254.05835253,0.00011596,2]
[361153514,1747310798490,-400.0,0.00011596,2]
[361153515,1747310798513,-220.4192144,0.00011596,2]
[361153516,1747310798538,-400.0,0.00011596,2]
[361153517,1747310798561,-214.10967008,0.00011596,2]
[361153518,1747310798583,-400.0,0.00011596,2]
[361153519,1747310798606,-400.0,0.00011596,2]
[361153520,1747310798628,-231.48319388,0.00011596,2]
[361153521,1747310798649,-435.13,0.00011596,2]
[361153522,1747310798671,-347.04305301,0.00011596,2]
[361153523,1747310798694,-400.0,0.00011596,2]
[361153524,1747310798718,-424.49,0.00011596,2]
[361153525,1747310798740,-450.0,0.00011596,2]
[361153526,1747310798762,-400.0,0.00011596,2]
[361153527,1747310798788,-400.0,0.00011596,2]
[361153528,1747310798810,-400.0,0.00011596,2]
[361153529,1747310798833,-400.0,0.00011596,2]
[361153530,1747310798858,-505.00991423,0.00011596,2]
[361153531,1747310799224,152.0,0.00018664,10]
[361153532,1747310799336,-66.76008577,0.00011596,2]
[361153533,1747310799358,-400.0,0.00011596,2]
[361153534,1747310799381,-400.0,0.00011596,2]
[361153535,1747310799404,-400.0,0.00011596,2]
[361153536,1747310799429,-400.0,0.00011596,2]
[361153537,1747310799453,-400.0,0.00011596,2]
[361153538,1747310799477,-400.0,0.00011596,2]
[361153539,1747310799501,-1003.15,0.00011596,2]
[361153540,1747310799523,-400.0,0.00011596,2]
[361153541,1747310799547,-400.0,0.00011596,2]
[361153542,1747310799569,-400.0,0.00011596,2]
[361153543,1747310799592,-400.0,0.00011596,2]
[361153544,1747310799615,-400.0,0.00011596,2]
[361153545,1747310799639,-400.0,0.00011596,2]
[361153546,1747310799663,-400.0,0.00011596,2]
[361153547,1747310799686,-400.0,0.00011596,2]
[361153548,1747310799714,-502.74,0.00011596,2]
[361153549,1747310799737,-400.0,0.00011596,2]
[361153550,1747310799760,-601.95,0.00011596,2]
[361153551,1747310799787,-278.44,0.00011596,2]
[361153552,1747310799811,-400.0,0.00011596,2]
[361153553,1747310799833,-445.1,0.00011596,2]
[361153554,1747310799857,-400.0,0.00011596,2]
[361153555,1747310799879,-400.0,0.00011596,2]
[361153556,1747310799904,-400.0,0.00011596,2]
[361153557,1747310799927,-1091.76,0.00011596,2]
[361153558,1747310799950,-400.0,0.00011596,2]
[361153559,1747310799974,-570.05,0.00011596,2]
[361153560,1747310799996,-400.0,0.00011596,2]
[361153561,1747310800023,-400.0,0.00011596,2]
[361153562,1747310800045,-400.0,0.00011596,2]
[361153563,1747310800068,-400.0,0.00011596,2]
[361153564,1747310800090,-400.0,0.00011596,2]
[361153565,1747310800113,-400.0,0.00011596,2]
[361153566,1747310800134,-400.0,0.00011596,2]
[361153567,1747310800157,-490.36,0.00011596,2]
[361153568,1747310800179,-400.0,0.00011596,2]
[361153569,1747310800203,-400.0,0.00011596,2]
[361153570,1747310800225,-400.0,0.00011596,2]
[361153571,1747310800464,-400.0,0.00011596,2]
[361153572,1747310800487,-400.0,0.00011596,2]
[361153573,1747310800511,-892.6,0.00011596,2]
[361153574,1747310800535,-400.0,0.00011596,2]
[361153575,1747310800557,-400.0,0.00011596,2]
[361153576,1747310800581,-400.0,0.00011596,2]
[361153577,1747310800604,-400.0,0.00011596,2]
[361153578,1747310800627,-400.0,0.00011596,2]
[361153579,1747310800651,-503.87,0.00011596,2]
[361153580,1747310800676,-450.0,0.00011596,2]
[361153581,1747310800703,-590.22,0.00011596,2]
[361153582,1747310800727,-400.0,0.00011596,2]
[361153583,1747310800751,-500.0,0.00011596,2]
[361153584,1747310800776,-405.57,0.00011596,2]
[361153585,1747310800801,-2368.21,0.00011596,2]
[361153586,1747310800824,-400.0,0.00011596,2]
[361153587,1747310800846,-406.27,0.00011596,2]
[361153588,1747310800869,-400.0,0.00011596,2]
[361153589,1747310800891,-400.0,0.00011596,2]
[361153590,1747310800912,-400.0,0.00011596,2]
[361153591,1747310800936,-400.0,0.00011596,2]
[361153592,1747310800959,-709.86,0.00011596,2]
[361153593,1747310800980,-747.84,0.00011596,2]
[361153594,1747310801003,-413.98,0.00011596,2]
[361153595,1747310801028,-2795.93,0.00011596,2]
[361153596,1747310801051,-1128.51,0.00011596,2]
[361153597,1747310801074,-1096.86,0.00011596,2]
[361153598,1747310801096,-400.0,0.00011596,2]
[361153599,1747310801119,-400.0,0.00011596,2]
[361153600,1747310801141,-400.0,0.00011596,2]
[361153601,1747310801164,-400.0,0.00011596,2]
[361153602,1747310801187,-953.86,0.00011596,2]
[361153603,1747310801208,-400.0,0.00011596,2]
[361153604,1747310801231,-400.0,0.00011596,2]
[361153605,1747310801254,-532.44,0.00011596,2]
[361153606,1747310801277,-400.0,0.00011596,2]
[361153607,1747310801300,-400.0,0.00011596,2]
[361153608,1747310801322,-400.0,0.00011596,2]
[361153609,1747310801345,-400.0,0.00011596,2]
[361153610,1747310801368,-400.0,0.00011596,2]
[361153611,1747310801391,-454.69,0.00011596,2]
[361153612,1747310801412,-400.0,0.00011596,2]
[361153613,1747310801434,-400.0,0.00011596,2]
[361153614,1747310801457,-400.0,0.00011596,2]
[361153615,1747310801479,-400.0,0.00011596,2]
[361153616,1747310801503,-528.29,0.00011596,2]
[361153617,1747310801525,-400.0,0.00011596,2]
[361153618,1747310801548,-400.0,0.00011596,2]
[361153619,1747310801570,-546.92048656,0.00011596,2]
[361153620,1747310801593,-400.0,0.00011596,2]
[361153621,1747310801616,-400.0,0.00011596,2]
[361153622,1747310801639,-400.0,0.00011596,2]
[361153623,1747310801662,-1746.95,0.00011596,2]
[361153624,1747310801686,-557.18,0.00011596,2]
[361153625,1747310801715,-2044.21,0.00011596,2]
[361153626,1747310801738,-400.0,0.00011596,2]
[361153627,1747310801761,-183.48644816,0.00011596,2]
[361153628,1747310801790,-400.0,0.00011596,2]
[361153629,1747310801813,-924.93,0.00011596,2]
[361153630,1747310801837,-400.0,0.00011596,2]
[361153631,1747310801859,-400.0,0.00011596,2]
[361153632,1747310801882,-38060.1,0.00011596,2]
[361153633,1747310801905,-400.0,0.00011596,2]
[361153634,1747310801927,-426.14,0.00011596,2]
[361153635,1747310801951,-1189.3,0.00011596,2]
[361153636,1747310801973,-400.0,0.00011596,2]
[361153637,1747310801997,-400.0,0.00011596,2]
[361153638,1747310802019,-542.88,0.00011596,2]
[361153639,1747310802044,-685.71,0.00011596,2]
[361153640,1747310802067,-1454.65,0.00011596,2]
[361153641,1747310802090,-898.29,0.00011596,2]
[361153642,1747310802112,-498.04,0.00011596,2]
[361153643,1747310802135,-643.12,0.00011596,2]
[361153644,1747310802160,-400.0,0.00011596,2]
[361153645,1747310802182,-400.0,0.00011596,2]
[361153646,1747310802204,-268.78297951,0.00011597,2]
[361153647,1747310802263,-131.21702049,0.00011597,2]
[361153648,1747310802286,-400.0,0.00011597,2]
[361153649,1747310802309,-400.0,0.00011597,2]
[361153650,1747310802331,-400.0,0.00011597,2]
[361153651,1747310802353,-400.0,0.00011597,2]
[361153652,1747310802377,-400.0,0.00011597,2]
[361153653,1747310802401,-400.0,0.00011597,2]
[361153654,1747310802425,-402.78284114,0.00011597,2]
[361153655,1747310802451,-190.28414693,0.00011597,2]
[361153656,1747310802474,-159.76737381,0.00011597,2]
[361153657,1747310802496,-412.36683234,0.00011597,2]
[361153658,1747310802519,-400.0,0.00011597,2]
[361153659,1747310802543,-400.0,0.00011597,2]
[361153660,1747310802566,-402.49239454,0.00011597,2]
[361153661,1747310802589,-405.72320909,0.00011597,2]
[361153662,1747310802612,-400.0,0.00011597,2]
[361153663,1747310802634,-402.05523416,0.00011597,2]
[361153664,1747310802656,-400.0,0.00011597,2]
[361153665,1747310802678,-400.0,0.00011597,2]
[361153666,1747310802704,-400.0,0.00011597,2]
[361153667,1747310802726,-400.0,0.00011597,2]
[361153668,1747310802750,-400.0,0.00011597,2]
[361153669,1747310802774,-400.0,0.00011597,2]
[361153670,1747310802796,-400.0,0.00011597,2]
[361153671,1747310802818,-400.0,0.00011597,2]
[361153672,1747310802840,-400.0,0.00011597,2]
[361153673,1747310802861,-449.09353745,0.00011597,2]
[361153674,1747310802883,-400.0,0.00011597,2]
[361153675,1747310802905,-400.0,0.00011597,2]
[361153676,1747310802927,-332.90768522,0.00011597,2]
[361153677,1747310802952,-422.45,0.00011597,2]
[361153678,1747310802975,-307.91007631,0.00011597,2]
[361153679,1747310802997,-400.0,0.00011597,2]
[361153680,1747310803019,-403.98,0.00011597,2]
[361153681,1747310803041,-400.0,0.00011597,2]
[361153682,1747310803063,-400.0,0.00011597,2]
[361153683,1747310803086,-400.85,0.00011597,2]
[361153684,1747310803108,-400.0,0.00011597,2]
[361153685,1747310803129,-634.52,0.00011597,2]
[361153686,1747310803151,-321.44370099,0.00011597,2]
[361153687,1747310803173,-491.6,0.00011597,2]
[361153688,1747310803195,-325.56497061,0.00011597,2]
[361153689,1747310803218,-400.0,0.00011597,2]
[361153690,1747310803240,-400.0,0.00011597,2]
[361153691,1747310803262,-400.0,0.00011597,2]
[361153692,1747310803284,-400.0,0.00011597,2]
[361153693,1747310803307,-500.0,0.00011597,2]
[361153694,1747310803329,-400.0,0.00011597,2]
[361153695,1747310803352,-400.0,0.00011597,2]
[361153696,1747310803377,-400.0,0.00011597,2]
[361153697,1747310803400,-346.03341167,0.00011597,2]
[361153698,1747310803421,-314.5268071,0.00011597,2]
[361153699,1747310803442,-578.97,0.00011597,2]
[361153700,1747310803465,-400.0,0.00011597,2]
[361153701,1747310803487,-160.10513058,0.00011597,2]
[361153702,1747310803509,-400.0,0.00011597,2]
[361153703,1747310803531,-400.0,0.00011597,2]
[361153704,1747310803554,-400.0,0.00011597,2]
[361153705,1747310803577,-400.0,0.00011597,2]
[361153706,1747310803598,-389.49759652,0.00011597,2]
[361153707,1747310803621,-400.0,0.00011597,2]
[361153708,1747310803644,-400.0,0.00011597,2]
[361153709,1747310803667,-400.0,0.00011597,2]
[361153710,1747310803690,-400.0,0.00011597,2]
[361153711,1747310803716,-400.0,0.00011597,2]
[361153712,1747310803743,-400.0,0.00011597,2]
[361153713,1747310803766,-400.0,0.00011597,2]
[361153714,1747310803792,-400.0,0.00011597,2]
[361153715,1747310803814,-400.0,0.00011597,2]
[361153716,1747310803838,-400.0,0.00011597,2]
[361153717,1747310803859,-400.0,0.00011597,2]
[361153718,1747310803882,-448.92,0.00011597,2]
[361153719,1747310803907,-634.79,0.00011597,2]
[361153720,1747310803934,-400.0,0.00011597,2]
[361153721,1747310803956,-564.08,0.00011597,2]
[361153722,1747310803980,-400.0,0.00011597,2]
[361153723,1747310804006,-400.0,0.00011597,2]
[361153724,1747310804030,-191.21618575,0.00011597,2]
[361153725,1747310804053,-400.0,0.00011597,2]
[361153726,1747310804075,-423.01,0.00011597,2]
[361153727,1747310804098,-400.0,0.00011597,2]
[361153728,1747310804121,-400.0,0.00011597,2]
[361153729,1747310804142,-400.0,0.00011597,2]
[361153730,1747310804164,-400.0,0.00011597,2]
[361153731,1747310804186,-400.0,0.00011597,2]
[361153732,1747310804209,-527.44,0.00011597,2]
[361153733,1747310804231,-400.0,0.00011597,2]
[361153734,1747310804254,-583.27,0.00011597,2]
[361153735,1747310804279,-400.0,0.00011597,2]
[361153736,1747310804301,-400.0,0.00011597,2]
[361153737,1747310804323,-400.0,0.00011597,2]
[361153738,1747310804346,-400.0,0.00011597,2]
[361153739,1747310804370,-806.02,0.00011597,2]
[361153740,1747310804393,-400.0,0.00011597,2]
[361153741,1747310804416,-400.0,0.00011597,2]
[361153742,1747310804439,-400.0,0.00011597,2]
[361153743,1747310804461,-971.01,0.00011597,2]
[361153744,1747310804485,-619.12,0.00011597,2]
[361153745,1747310804508,-400.0,0.00011597,2]
[361153746,1747310804533,-400.0,0.00011597,2]
[361153747,1747310804556,-400.0,0.00011597,2]
[361153748,1747310804579,-400.0,0.00011597,2]
[361153749,1747310804845,-400.0,0.00011597,2]
[361153750,1747310804869,-400.0,0.00011597,2]
[361153751,1747310804893,-176.33948278,0.00011597,2]
[361153752,1747310804914,-400.0,0.00011597,2]
[361153753,1747310804936,-816.73,0.00011597,2]
[361153754,1747310804960,-400.0,0.00011597,2]
[361153755,1747310805000,-400.0,0.00011597,2]
[361153756,1747310805024,-281.94286598,0.00011597,2]
[361153757,1747310805050,-400.62,0.00011597,2]
[361153758,1747310805073,-400.0,0.00011597,2]
[361153759,1747310805095,-507.63,0.00011597,2]
[361153760,1747310805119,-400.0,0.00011597,2]
[361153761,1747310805141,-467.44,0.00011597,2]
[361153762,1747310805164,-400.0,0.00011597,2]
[361153763,1747310805187,-412.61,0.00011597,2]
[361153764,1747310805211,-400.0,0.00011597,2]
[361153765,1747310805233,-473.1,0.00011597,2]
[361153766,1747310805256,-409.71773951,0.00011597,2]
[361153767,1747310805280,-400.0,0.00011597,2]
[361153768,1747310805303,-400.0,0.00011597,2]
[361153769,1747310805325,-400.0,0.00011597,2]
[361153770,1747310805347,-400.0,0.00011597,2]
[361153771,1747310805371,-400.0,0.00011597,2]
[361153772,1747310805393,-400.0,0.00011597,2]
[361153773,1747310805417,-737.25,0.00011597,2]
[361153774,1747310805439,-400.0,0.00011597,2]
[361153775,1747310805463,-400.0,0.00011597,2]
[361153776,1747310805487,-400.0,0.00011597,2]
[361153777,1747310805516,-400.0,0.00011597,2]
[361153778,1747310805542,-400.0,0.00011597,2]
[361153779,1747310805565,-400.0,0.00011597,2]
[361153780,1747310805589,-467.82,0.00011597,2]
[361153781,1747310805613,-402.39568542,0.00011597,2]
[361153782,1747310805636,-400.0,0.00011597,2]
[361153783,1747310805660,-400.0,0.00011597,2]
[361153784,1747310805684,-400.0,0.00011597,2]
[361153785,1747310805712,-400.0,0.00011597,2]
[361153786,1747310805736,-453.81786962,0.00011597,2]
[361153787,1747310805760,-400.0,0.00011597,2]
[361153788,1747310805790,-400.0,0.00011597,2]
[361153789,1747310805815,-400.0,0.00011597,2]
[361153790,1747310805839,-428.54973154,0.00011597,2]
[361153791,1747310805864,-400.0,0.00011597,2]
[361153792,1747310805889,-400.0,0.00011597,2]
[361153793,1747310805913,-450.16,0.00011597,2]
[361153794,1747310805936,-414.35,0.00011597,2]
[361153795,1747310805960,-400.0,0.00011597,2]
[361153796,1747310805983,-400.0,0.00011597,2]
[361153797,1747310806006,-400.0,0.00011597,2]
[361153798,1747310806030,-400.0,0.00011597,2]
[361153799,1747310806057,-404.67,0.00011597,2]
[361153800,1747310806080,-400.0,0.00011597,2]
[361153801,1747310806103,-400.0,0.00011597,2]
[361153802,1747310806127,-400.0,0.00011597,2]
[361153803,1747310806151,-475.73,0.00011597,2]
[361153804,1747310806175,-400.0,0.00011597,2]
[361153805,1747310806198,-400.0,0.00011597,2]
[361153806,1747310806222,-400.0,0.00011597,2]
[361153807,1747310806246,-400.0,0.00011597,2]
[361153808,1747310806270,-870.48,0.00011597,2]
[361153809,1747310806295,-400.0,0.00011597,2]
[361153810,1747310806321,-400.0,0.00011597,2]
[361153811,1747310806346,-653.6,0.00011597,2]
[361153812,1747310806371,-400.0,0.00011597,2]
[361153813,1747310806398,-400.0,0.00011597,2]
[361153814,1747310806423,-400.0,0.00011597,2]
[361153815,1747310806448,-400.0,0.00011597,2]
[361153816,1747310806472,-400.0,0.00011597,2]
[361153817,1747310806496,-400.0,0.00011597,2]
[361153818,1747310806521,-642.28,0.00011597,2]
[361153819,1747310806550,-400.0,0.00011597,2]
[361153820,1747310806577,-400.0,0.00011597,2]
[361153821,1747310806601,-400.0,0.00011597,2]
[361153822,1747310806625,-166.51829712,0.00011597,2]
[361153823,1747310806649,-400.0,0.00011597,2]
[361153824,1747310806673,-448.13,0.00011597,2]